fUSD/lending_fUSD_20250302
["ID","MTS","AMOUNT","RATE_DAILY","PERIOD"]
[355116652,1740915041806,-150.0,0.00028973,2]
[355116653,1740915041815,-150.0,0.00028976,2]
[355116654,1740915041825,-150.0,0.00028981,2]
[355116655,1740915041835,-150.0,0.00028983,2]
[355116656,1740915041845,-150.0,0.00028985,2]
[355116657,1740915041855,-216.504473,0.00028997,2]
[355116658,1740915041864,-457.1690062,0.00028997,2]
[355116659,1740915041874,-341.6258611,0.00028997,2]
[355116660,1740915041883,-523.30853599,0.00028998,2]
[355116661,1740915041892,-500.0,0.00028998,2]
[355116662,1740915041902,-600.40852136,0.00028999,2]
[355116663,1740915041912,-367.59705627,0.00028999,2]
[355116664,1740915041921,-150.0,0.00028999,2]
[355116665,1740915041931,-150.0,0.00028999,2]
[355116666,1740915041941,-259315.63921843,0.00029,2]
[355116667,1740915041950,-145148.6553453,0.00029,2]
[355116668,1740915041959,-400.0,0.00029,2]
[355116669,1740915041969,-1000.0,0.00029,2]
[355116670,1740915041978,-1000.0,0.00029,2]
[355116671,1740915041987,-1000.0,0.00029,2]
[355116672,1740915041997,-1000.0,0.00029,2]
[355116673,1740915042007,-615.60032015,0.00029,2]
[355116674,1740915042016,-320.0,0.00029,2]
[355116675,1740915042025,-358.0,0.00029,2]
[355116676,1740915042035,-7209.53700762,0.00029,30]
[355116677,1740915042044,-151.0,0.00029,7]
[355116678,1740915042054,-151.0,0.00029,7]
[355116679,1740915042063,-151.0,0.00029,7]
[355116680,1740915042072,-151.0,0.00029,7]
[355116681,1740915042082,-172.0,0.00029,2]
[355116682,1740915042091,-1000.0,0.00029,2]
[355116683,1740915042101,-10322.72953451,0.00029,2]
[355116684,1740915042110,-2818.2576713,0.00029017,2]
[355116685,1740915042119,-497.64,0.00029019,2]
[355116686,1740915042128,-150.26020179,0.00029036,14]
[355116687,1740915042137,-2206.37,0.00029041,2]
[355116688,1740915042146,-1100.32,0.00029041,2]
[355116689,1740915042155,-172.0,0.00029041,2]
[355116690,1740915042165,-150.0,0.00029054,14]
[355116691,1740915042174,-150.0,0.00029054,14]
[355116692,1740915042183,-208.73724308,0.00029131,5]
[355116693,1740915042192,-497.64,0.00029165,2]
[355116694,1740915042201,-500.0,0.00029173,2]
[355116695,1740915042211,-500.0,0.00029173,2]
[355116696,1740915042220,-500.0,0.00029173,2]
[355116697,1740915042230,-1000.0,0.00029173,7]
[355116698,1740915042239,-500.0,0.00029173,2]
[355116699,1740915042248,-500.0,0.00029173,2]
[355116700,1740915042257,-547.12,0.00029173,2]
[355116701,1740915042268,-201.0,0.0002922,2]
[355116702,1740915042277,-500.0,0.00029223,120]
[355116703,1740915042286,-500.0,0.00029272,2]
[355116704,1740915042296,-497.64,0.00029311,2]
[355116705,1740915042306,-2206.37,0.00029315,2]
[355116706,1740915042315,-1100.32,0.00029315,2]
[355116707,1740915042324,-500.0,0.00029447,2]
[355116708,1740915042333,-500.0,0.00029447,2]
[355116709,1740915042343,-500.0,0.00029447,2]
[355116710,1740915042352,-1000.0,0.00029447,7]
[355116711,1740915042361,-500.0,0.00029447,2]
[355116712,1740915042371,-238.02,0.00029447,2]
[355116713,1740915042379,-497.64,0.00029457,2]
[355116714,1740915042389,-189.030217,0.00029498,120]
[355116715,1740915042398,-500.0,0.00029546,2]
[355116716,1740915042408,-2206.37,0.00029589,2]
[355116717,1740915042418,-1100.32,0.00029589,2]
[355116718,1740915042427,-497.64,0.00029603,2]
[355116719,1740915042437,-500.0,0.00029628,2]
[355116720,1740915042446,-150.0,0.00029628,2]
[355116721,1740915042455,-150.0,0.00029628,2]
[355116722,1740915042465,-500.0,0.00029655,2]
[355116723,1740915042474,-150.0,0.00029655,2]
[355116724,1740915042483,-208.73724308,0.00029669,5]
[355116725,1740915042492,-500.0,0.00029683,2]
[355116726,1740915042502,-291.95,0.00029683,2]
[355116727,1740915042511,-500.0,0.0002971,2]
[355116728,1740915042521,-500.0,0.00029721,2]
[355116729,1740915042531,-500.0,0.00029721,2]
[355116730,1740915042542,-234.8131478,0.00029721,2]
[355116731,1740915042551,-500.0,0.00029721,2]
[355116732,1740915042561,-500.0,0.00029738,2]
[355116733,1740915042570,-150.0,0.00029744,2]
[355116734,1740915042580,-497.64,0.00029749,2]
[355116735,1740915042589,-500.0,0.00029765,2]
[355116737,1740915042598,-507.841,0.00029792,2]
[355116740,1740915042608,-500.0,0.0002982,2]
[355116742,1740915042618,-2000.0,0.0002985,2]
[355116743,1740915042628,-2000.249,0.0002985,2]
[355116744,1740915042637,-1005.96737478,0.00029853,3]
[355116746,1740915042647,-2206.37,0.00029863,2]
[355116748,1740915042657,-1100.32,0.00029863,2]
[355116750,1740915042667,-166.60261909,0.0002988,2]
[355116752,1740915042677,-5000.0,0.0002988,2]
[355116754,1740915042688,-185.88973418,0.0002988,2]
[355116756,1740915042698,-497.64,0.00029894,2]
[355116758,1740915042708,-2938.30506244,0.000299,120]
[355116761,1740915042719,-695.609107,0.000299,2]
[355116762,1740915042729,-180.05533752,0.000299,2]
[355116763,1740915042739,-252.90549879,0.000299,2]
[355116764,1740915042748,-2706.16644932,0.000299,2]
[355116765,1740915042760,-4937.33525248,0.000299,2]
[355116766,1740915042770,-206.86127997,0.0002997,2]
[355116767,1740915042779,-151.36977587,0.00029973,5]
[355116768,1740915042788,-160.11774685,0.00029973,5]
[355116769,1740915042799,-161.13441838,0.00029973,5]
[355116770,1740915042809,-1077.82461428,0.00029979,15]
[355116771,1740915042819,-795.0,0.0002998,5]
[355116772,1740915042828,-308293.36302697,0.0002998,6]
[355116773,1740915042840,-180.46722532,0.0002998,2]
[355116774,1740915042850,-408.57500803,0.0002998,2]
[355116775,1740915042859,-500869.41153297,0.0002998,2]
[355116776,1740915042885,-1307.68303086,0.0002998,2]
[355116777,1740915042958,-863.786817,0.0002998,2]
[355116779,1740915045705,-941.39928909,0.0002998,2]
[355116780,1740915045764,-16705.69281,0.0002998,2]
[355116781,1740915045776,-1000.0,0.0002998,2]
[355116785,1740915972751,257.95,0.00014852,2]
[355116797,1740916232146,-150.0,0.0002,2]
[355116798,1740916232157,-155.72859,0.00021918,2]
[355116799,1740916232169,-26.96141,0.00021918,2]
[355116800,1740916232178,-278.76718,0.00023456,2]
[355116829,1740916237837,-173.80906516,0.00023456,2]
[355116830,1740916237847,-6896.435498,0.0002389,2]
[355116831,1740916237857,-685.55773458,0.0002401,2]
[355116832,1740916237867,-150.0,0.0002411,2]
[355116833,1740916237877,-450.0,0.0002411,2]
[355116834,1740916237887,-150.0,0.0002433,2]
[355116835,1740916237897,-500.0,0.00024657,2]
[355116836,1740916237906,-632.46,0.00024764,2]
[355116837,1740916237916,-5350.61069761,0.00025,2]
[355116838,1740916237926,-351.59362966,0.00025328,2]
[355116839,1740916237935,-208.73724308,0.000259,4]
[355116840,1740916237945,-165.12,0.00026006,2]
[355116841,1740916237955,-176.0,0.0002604,2]
[355116842,1740916237964,-22817.24,0.0002605,2]
[355116843,1740916237974,-1000.0,0.00026067,2]
[355116844,1740916237984,-227.35,0.00026072,2]
[355116845,1740916237995,-2000.0,0.00026077,2]
[355116846,1740916238004,-173.6,0.0002609,2]
[355116847,1740916238014,-181.24,0.0002609,2]
[355116848,1740916238028,-515.31,0.00026098,2]
[355116849,1740916238038,-159.41,0.00026194,120]
[355116850,1740916238048,-200.0,0.00026269,2]
[355116851,1740916238058,-61.44613192,0.00026277,5]
[355116852,1740916238203,-1211.43117031,0.00026277,5]
[355116903,1740916240029,-727.12269777,0.00026277,5]
[355116905,1740916240039,-150.0,0.00026293,7]
[355116907,1740916240048,-150.46,0.00026317,30]
[355116909,1740916240058,-400.99,0.00026388,2]
[355116911,1740916240067,-157.482,0.00026458,13]
[355116913,1740916240076,-7879.15,0.00026498,2]
[355116915,1740916240086,-519.17,0.00026525,2]
[355116917,1740916240095,-250.0,0.00026538,2]
[355116919,1740916240105,-1400.9,0.000267,120]
[355116921,1740916240115,-640.0,0.00026742,2]
[355116947,1740916240353,-570.0,0.00026742,2]
[355116948,1740916240367,-1583.0,0.00026742,2]
[355116950,1740916240377,-785.0,0.00026742,2]
[355116952,1740916240391,-1427.0,0.00026742,2]
[355116954,1740916240401,-1269.0,0.00026742,2]
[355116956,1740916240411,-540.0,0.00026742,2]
[355116959,1740916240421,-909.0,0.00026742,2]
[355116960,1740916240431,-4034.0,0.00026742,2]
[355116961,1740916240441,-150.0,0.00026742,2]
[355116962,1740916240451,-150.0,0.00026742,2]
[355116963,1740916240460,-179.01,0.00026873,2]
[355116964,1740916240471,-2670.1,0.00026968,2]
[355116965,1740916240480,-632.46,0.00027028,2]
[355116966,1740916240490,-150.0,0.00027107,2]
[355116967,1740916240500,-208.73724308,0.000273,4]
[355116968,1740916240509,-227.35,0.00027376,2]
[355116969,1740916240519,-313.38,0.000279,2]
[355116970,1740916240530,-268.77,0.00028468,2]
[355116971,1740916240539,-200.0,0.00028583,2]
[355116972,1740916240551,-227.35,0.00028679,2]
[355116973,1740916240561,-208.73724308,0.000287,5]
[355116974,1740916240571,-1706.4479,0.000288,2]
[355116975,1740916240582,-500.0,0.00028898,2]
[355116976,1740916240591,-500.0,0.00029172,2]
[355116977,1740916240601,-632.46,0.00029292,2]
[355116978,1740916240613,-1000.0,0.00029326,2]
[355116979,1740916240623,-540.1254914,0.0002938,4]
[355116980,1740916240633,-500.0,0.00029446,2]
[355116981,1740916240643,-500.0,0.00029499,2]
[355116982,1740916240652,-500.0,0.00029499,2]
[355116983,1740916240661,-500.0,0.00029499,2]
[355116984,1740916240671,-4000.0,0.00029499,2]
[355116985,1740916240682,-500.0,0.00029499,2]
[355116986,1740916240691,-500.0,0.00029499,2]
[355116987,1740916240701,-500.0,0.00029499,2]
[355116988,1740916240712,-600.0,0.00029499,2]
[355116989,1740916240722,-18599.04236494,0.000295,4]
[355116990,1740916242308,-1296.76831101,0.000295,4]
[355117004,1740916246275,-135.25828123,0.000295,4]
[355117005,1740916246290,-2851.36862897,0.000295,4]
[355117006,1740916246341,-41799.83433702,0.000295,4]
[355117007,1740916246358,-12762.27326112,0.000295,4]
[355117010,1740916527916,250.0,0.00013,2]
[355117011,1740916569608,-300.0,0.00015,2]
[355117012,1740916569631,-350.0,0.00017,2]
[355117013,1740916569653,-150.0,0.00018,2]
[355117014,1740916569674,-150.0,0.00019,2]
[355117015,1740916569695,-150.0,0.0002,2]
[355117016,1740916569716,-1900.0,0.0002,2]
[355117017,1740916995552,2200.0,0.000202,14]
[355117150,1740917432164,-919.0,0.00024,3]
[355117151,1740917432175,-555.42,0.00026483,2]
[355117152,1740917432185,-350.1142,0.00026642,2]
[355117153,1740917432196,-2885.7320254,0.00026742,30]
[355117154,1740917432216,-3217.60282194,0.00026742,30]
[355117155,1740917432323,-640.54032554,0.00026742,30]
[355117156,1740917432335,-453.5979686,0.00026742,30]
[355117157,1740917432428,-845.26934427,0.00026742,30]
[355117158,1740917432439,-759.45939,0.00026742,30]
[355117159,1740917432451,-1056.39,0.00026742,30]
[355117160,1740917432534,-5077.31877258,0.00026742,30]
[355117216,1740917438279,-261.20498039,0.00026742,30]
[355117217,1740917438333,-926.27701791,0.00026742,30]
[355117232,1740917440324,-1837.2,0.00026742,30]
[355117233,1740917440501,-0.01956877,0.00026742,30]
[355117282,1740917446299,-3803.16968966,0.00026742,30]
[355117283,1740917446310,-9665.0,0.00026742,2]
[355117284,1740917446320,-500.0,0.00026742,2]
[355117285,1740917446330,-500.0,0.00026742,2]
[355117286,1740917446340,-500.0,0.00026742,2]
[355117287,1740917446349,-286.07300004,0.00026742,2]
[355117288,1740917446359,-586.888,0.00026742,2]
[355117289,1740917446369,-1583.0,0.00026742,2]
[355117290,1740917446378,-570.0,0.00026742,2]
[355117291,1740917446387,-1051.749,0.00026742,2]
[355117292,1740917446397,-206.61360535,0.000269,4]
[355117293,1740917446408,-1300.0,0.00028,30]
[355117294,1740917446418,-282.04,0.000281,2]
[355117295,1740917446428,-206.61360533,0.000281,5]
[355117296,1740917446437,-1305.95934199,0.000282,30]
[355117297,1740917446447,-186.12,0.0002831,120]
[355117298,1740917446457,-1000.0,0.00028393,2]
[355117299,1740917446467,-150.46,0.00028429,30]
[355117300,1740917446477,-150.0,0.00028432,7]
[355117301,1740917446486,-250.0,0.00028465,2]
[355117302,1740917446496,-555.42,0.00028747,2]
[355117303,1740917446505,-151.56,0.00028812,2]
[355117304,1740917446515,-268.77,0.00028878,2]
[355117305,1740917446525,-8011.93,0.00028931,2]
[355117306,1740917446535,-2200.0,0.00029,30]
[355117307,1740917446545,-2008.69,0.00029,2]
[355117308,1740917446555,-206.61360533,0.000293,5]
[355117309,1740917446564,-405.0941185,0.0002938,4]
[355117310,1740917446575,-500.0,0.00029473,5]
[355117311,1740917446585,-500.0,0.00029499,2]
[355117312,1740917446595,-596.16861,0.00029499,2]
[355117313,1740917446605,-157.483,0.000295,23]
[355117314,1740917446619,-81009.20274878,0.000295,4]
[355117315,1740917446630,-218.23047687,0.00029611,2]
[355117316,1740917446639,-646.208,0.00029742,2]
[355117317,1740917446651,-561.804,0.00029742,2]
[355117318,1740917446662,-1000.0,0.00029772,14]
[355117319,1740917446672,-2624.82513494,0.000298,15]
[355117320,1740917446681,-2000.0,0.0002985,2]
[355117321,1740917446692,-500.0,0.00029869,120]
[355117322,1740917446702,-1216.43,0.00029869,2]
[355117323,1740917446712,-150.0,0.00029877,2]
[355117324,1740917446722,-152.422,0.00029877,2]
[355117325,1740917446731,-299.5948,0.00029879,2]
[355117326,1740917446741,-500.0,0.00029879,2]
[355117327,1740917446750,-500.0,0.00029879,2]
[355117328,1740917446760,-52665.29458848,0.00029879,6]
[355117329,1740917446774,-12762.27326112,0.00029879,6]
[355117331,1740918179744,-343.0,0.000284,120]
[355117332,1740918179770,-1000.0,0.000298,60]
[355117333,1740918179795,-1000.0,0.00029845,60]
[355117334,1740918179820,-1000.0,0.00029879,90]
[355117335,1740918179848,-500.0,0.00029964,120]
[355117336,1740918179879,-13821.14,0.0003,30]
[355117337,1740918179904,-383.286225,0.0003,120]
[355117338,1740918179928,-3298.74,0.0003,120]
[355117339,1740918179953,-26719.0,0.0003,120]
[355117340,1740918179978,-150.0,0.00030136,30]
[355117341,1740918180003,-150.0,0.00030273,30]
[355117342,1740918180029,-1000.0,0.0003032,30]
[355117343,1740918180055,-150.0,0.0003041,30]
[355117344,1740918180082,-150.030217,0.00030498,120]
[355117345,1740918180107,-152.19086933,0.00030547,30]
[355117346,1740918180133,-1000.0,0.00030594,30]
[355117347,1740918180165,-1000.0,0.00031416,30]
[355117348,1740918180190,-150.030217,0.00031498,120]
[355117349,1740918180217,-1000.0,0.0003169,30]
[355117350,1740918180243,-206.0,0.0003179,30]
[355117351,1740918180268,-1000.0,0.00031964,30]
[355117352,1740918180293,-1013.82,0.00032,120]
[355117353,1740918180318,-1237.0271349,0.00032104,30]
[355117354,1740918180344,-1000.0,0.00032238,30]
[355117355,1740918180371,-211.0,0.0003226,120]
[355117356,1740918180400,-21763.78190506,0.00032265,30]
[355117357,1740918180426,-21763.78190506,0.00032265,30]
[355117358,1740918180452,-21763.78190506,0.00032265,30]
[355117359,1740918180478,-21763.78190506,0.00032265,30]
[355117360,1740918180504,-156.42712097,0.00032299,120]
[355117361,1740918180531,-30000.0,0.000325,120]
[355117362,1740918180557,-150.0,0.00032548,120]
[355117363,1740918180583,-206.0,0.0003265,30]
[355117364,1740918180608,-500.0,0.00032876,120]
[355117365,1740918180632,-500.0,0.00032876,120]
[355117366,1740918180657,-500.0,0.00032876,120]
[355117367,1740918180683,-500.0,0.00032876,120]
[355117368,1740918180707,-500.0,0.00032876,120]
[355117369,1740918180732,-500.0,0.00032876,120]
[355117370,1740918180760,-500.0,0.00032876,120]
[355117371,1740918180785,-500.0,0.00032876,120]
[355117372,1740918180809,-500.0,0.00032876,120]
[355117373,1740918180834,-500.0,0.00032876,120]
[355117374,1740918180862,-500.0,0.00032876,120]
[355117375,1740918180887,-1000.0,0.00032876,60]
[355117376,1740918180914,-1000.0,0.00032876,60]
[355117377,1740918180940,-1000.0,0.00032876,60]
[355117378,1740918180967,-1000.0,0.00032876,60]
[355117379,1740918180993,-1000.0,0.00032876,60]
[355117380,1740918181018,-1000.0,0.00032876,60]
[355117381,1740918181044,-825.45084626,0.00032876,60]
[355117382,1740918181070,-248.0,0.00032888,120]
[355117383,1740918181094,-500.0,0.00032893,120]
[355117384,1740918181119,-238.89974448,0.00033,120]
[355117385,1740918181143,-500.0,0.00033167,120]
[355117386,1740918181170,-150.46,0.00033355,120]
[355117387,1740918181195,-500.0,0.00033441,120]
[355117388,1740918181224,-2400.58,0.000335,31]
[355117389,1740918181252,-2400.58,0.000335,31]
[355117390,1740918181281,-2400.58,0.000335,31]
[355117391,1740918181310,-2400.58,0.000335,31]
[355117392,1740918181339,-2400.58,0.000335,31]
[355117393,1740918181367,-2400.58,0.000335,31]
[355117394,1740918181395,-2400.58,0.000335,31]
[355117395,1740918181423,-2400.58,0.000335,31]
[355117396,1740918181450,-2400.58,0.000335,31]
[355117397,1740918181478,-2400.58,0.000335,31]
[355117398,1740918181506,-2400.58,0.000335,31]
[355117399,1740918181534,-2400.58,0.000335,31]
[355117400,1740918181558,-206.0,0.0003351,30]
[355117401,1740918181594,-500.0,0.00033715,120]
[355117402,1740918181623,-500.0,0.00033989,120]
[355117403,1740918181650,-500.0,0.00034263,120]
[355117404,1740918181676,-206.0,0.0003437,30]
[355117405,1740918181701,-500.0,0.00034536,120]
[355117406,1740918181725,-500.0,0.0003481,120]
[355117407,1740918181751,-899.99999907,0.00035,36]
[355117408,1740918181776,-30000.0,0.00035,120]
[355117409,1740918181802,-500.0,0.00035084,120]
[355117410,1740918181828,-206.0,0.0003523,30]
[355117411,1740918181854,-374.76509289,0.00035358,120]
[355117412,1740918181882,-299.99,0.00035455,30]
[355117413,1740918181909,-150.0,0.00035521,120]
[355117414,1740918181936,-283.68177071,0.00035755,30]
[355117415,1740918181962,-150.0,0.00035755,30]
[355117416,1740918181988,-4268.53671639,0.00035755,30]
[355117417,1740918182013,-150.0,0.00035755,30]
[355117418,1740918182224,-720.9523117,0.00035755,30]
[355117419,1740918182250,-150.0,0.00035755,30]
[355117420,1740918182275,-416.93493535,0.00035755,30]
[355117421,1740918182299,-151.0,0.00036,120]
[355117422,1740918182324,-206.0,0.0003608,30]
[355117423,1740918182350,-206.0,0.0003694,30]
[355117424,1740918182375,-1000.0,0.00037,30]
[355117425,1740918182399,-2112.0,0.00037,117]
[355117426,1740918182424,-240.72661907,0.000372,103]
[355117427,1740918182454,-240.72661907,0.000372,103]
[355117428,1740918182479,-240.72661907,0.000372,103]
[355117429,1740918182506,-5000.0,0.000375,30]
[355117430,1740918182531,-30000.0,0.000375,120]
[355117431,1740918182555,-206.0,0.000378,30]
[355117432,1740918182579,-300.0,0.00038,120]
[355117433,1740918182604,-963.13048036,0.00038,120]
[355117434,1740918182628,-311.32610308,0.00038,120]
[355117435,1740918182654,-150.46,0.00038281,120]
[355117436,1740918182678,-12490.70431456,0.00038356,30]
[355117437,1740918182701,-1088.88401899,0.00038356,30]
[355117438,1740918182725,-275.97,0.00038356,120]
[355117439,1740918182750,-500.0,0.00038738,120]
[355117440,1740918182779,-2400.58,0.000389,31]
[355117441,1740918182807,-2400.58,0.000389,31]
[355117442,1740918182834,-2400.58,0.000389,31]
[355117443,1740918182864,-2400.58,0.000389,31]
[355117444,1740918182891,-2400.58,0.000389,31]
[355117445,1740918182917,-2400.58,0.000389,31]
[355117446,1740918182944,-2400.58,0.000389,31]
[355117447,1740918182971,-2400.58,0.000389,31]
[355117448,1740918182997,-2400.58,0.000389,31]
[355117449,1740918183023,-2400.58,0.000389,31]
[355117450,1740918183051,-2400.58,0.000389,31]
[355117451,1740918183078,-2400.58,0.000389,31]
[355117452,1740918183105,-2400.58,0.000389,31]
[355117453,1740918183133,-2400.58,0.000389,31]
[355117454,1740918183161,-2400.58,0.000389,31]
[355117455,1740918183188,-2400.58,0.000389,31]
[355117456,1740918183217,-2400.58,0.000389,31]
[355117457,1740918183245,-2400.58,0.000389,31]
[355117458,1740918183273,-2400.58,0.000389,31]
[355117459,1740918183301,-2400.58,0.000389,31]
[355117460,1740918183329,-2400.58,0.000389,31]
[355117461,1740918183357,-2400.58,0.000389,31]
[355117462,1740918183386,-2400.58,0.000389,31]
[355117463,1740918183414,-2400.58,0.000389,31]
[355117464,1740918183440,-421.70084642,0.00039,120]
[355117465,1740918183465,-941.75,0.000392,120]
[355117466,1740918183491,-396.92399055,0.00039999,31]
[355117467,1740918183516,-482.54257691,0.00039999,31]
[355117468,1740918183541,-400.96731846,0.00039999,31]
[355117469,1740918183569,-581.07577678,0.00039999,31]
[355117470,1740918183618,-429.25768822,0.00039999,31]
[355117471,1740918183644,-500.0,0.00039999,31]
[355117472,1740918183669,-500.0,0.00039999,31]
[355117473,1740918183695,-600.40852523,0.00039999,31]
[355117474,1740918183720,-100000.0,0.0004,40]
[355117475,1740918183745,-443.928681,0.0004,120]
[355117476,1740918183769,-325.79009845,0.0004,120]
[355117477,1740918183794,-300.0,0.0004,120]
[355117478,1740918183818,-5000.0,0.0004,120]
[355117479,1740918183841,-600.0,0.0004,120]
[355117480,1740918183867,-963.13048036,0.0004,120]
[355117481,1740918183892,-311.32610308,0.0004,120]
[355117482,1740918183918,-30000.0,0.0004,120]
[355117483,1740918183944,-14999.99,0.0004,120]
[355117484,1740918183967,-318.44,0.0004,120]
[355117485,1740918183991,-5528.16,0.0004,120]
[355117486,1740918184016,-280.5,0.0004,120]
[355117487,1740918184041,-12500.0,0.0004,120]
[355117488,1740918184065,-518.9,0.0004,120]
[355117489,1740918184089,-708.87,0.0004,120]
[355117490,1740918184114,-150.0,0.00040193,120]
[355117491,1740918184139,-12500.0,0.0004025,120]
[355117492,1740918184164,-12490.70431456,0.00040356,30]
[355117493,1740918184189,-6302.41,0.000405,120]
[355117494,1740918184215,-211.96,0.000408,120]
[355117495,1740918184242,-100000.0,0.00041,41]
[355117496,1740918184267,-4243.40405659,0.00041,120]
[355117497,1740918184292,-846.12602381,0.00041,30]
[355117498,1740918184317,-515.85750518,0.00041095,120]
[355117499,1740918184343,-1500.0,0.00041096,120]
[355117500,1740918184368,-2621.82115355,0.0004128,60]
[355117501,1740918184393,-173.0,0.0004137,90]
[355117502,1740918184419,-300.0,0.0004137,30]
[355117503,1740918184445,-300.0,0.0004137,30]
[355117504,1740918184471,-440.1,0.0004137,30]
[355117505,1740918184498,-150.0,0.0004137,30]
[355117506,1740918184523,-4646.4,0.000415,117]
[355117507,1740918184550,-515.070876,0.00041738,120]
[355117508,1740918184578,-2000.0,0.00041738,120]
[355117509,1740918184602,-512.010682,0.00041738,120]
[355117510,1740918184627,-208.283699,0.00041738,120]
[355117511,1740918184651,-1016.64493,0.00041999,120]
[355117512,1740918184677,-100000.0,0.00042,42]
[355117513,1740918184701,-315.27246017,0.00042,120]
[355117514,1740918184726,-300.0,0.00042,120]
[355117515,1740918184750,-12296.42392204,0.00042,120]
[355117516,1740918184775,-284.84,0.00042,120]
[355117517,1740918184799,-12490.70431456,0.00042356,30]
[355117518,1740918184824,-30000.0,0.000425,120]
[355117519,1740918184851,-885.65,0.00042603,30]
[355117520,1740918184882,-150.0,0.00042711,30]
[355117521,1740918184909,-1768.9870316,0.00042711,30]
[355117522,1740918185057,-150.0,0.00042711,30]
[355117523,1740918185083,-228.25784837,0.00042711,30]
[355117524,1740918185107,-246.22196409,0.00042711,30]
[355117525,1740918185132,-201.0,0.0004278,30]
[355117526,1740918185158,-100000.0,0.00043,43]
[355117527,1740918185182,-1000.0,0.00043,90]
[355117528,1740918185208,-44239.10405568,0.00043,30]
[355117529,1740918185232,-1926.26096073,0.00043,120]
[355117530,1740918185257,-622.65220616,0.00043,120]
[355117531,1740918185284,-50000.0,0.00043,60]
[355117532,1740918185309,-173.0,0.00043151,90]
[355117533,1740918185336,-150.46,0.00043207,120]
[355117534,1740918185362,-2000.0,0.00043238,120]
[355117535,1740918185387,-156.41832292,0.000435,120]
[355117536,1740918185413,-777.52,0.00043562,30]
[355117537,1740918185439,-777.52,0.00043562,30]
[355117538,1740918185464,-777.52,0.00043562,30]
[355117539,1740918185488,-420.55697467,0.00043562,120]
[355117540,1740918185514,-211.08637603,0.000437,120]
[355117541,1740918185540,-503.61280804,0.00043987,120]
[355117542,1740918185568,-100000.0,0.00044,44]
[355117543,1740918185593,-750.0,0.00044,120]
[355117544,1740918185619,-300.0,0.00044,120]
[355117545,1740918185644,-516.143896,0.00044,57]
[355117546,1740918185668,-201.0,0.0004412,30]
[355117547,1740918185699,-2400.58,0.000443,36]
[355117548,1740918185727,-2400.58,0.000443,36]
[355117549,1740918185757,-2400.58,0.000443,36]
[355117550,1740918185786,-2400.58,0.000443,36]
[355117551,1740918185814,-2400.58,0.000443,36]
[355117552,1740918185843,-2400.58,0.000443,36]
[355117553,1740918185878,-2400.58,0.000443,36]
[355117554,1740918185908,-2400.58,0.000443,36]
[355117555,1740918185935,-2400.58,0.000443,36]
[355117556,1740918185964,-2400.58,0.000443,36]
[355117557,1740918185991,-2400.58,0.000443,36]
[355117558,1740918186018,-2400.58,0.000443,36]
[355117559,1740918186045,-2400.58,0.000443,36]
[355117560,1740918186073,-2400.58,0.000443,36]
[355117561,1740918186099,-2400.58,0.000443,36]
[355117562,1740918186125,-2400.58,0.000443,36]